Workbook

Sheet Kontrolle
B2: Preisbildung im Monopol
H4: Erlös | J4: =Tabellen!J10 -> 2620.686881
B5: Funktionen | C5: aX3 | D5: bX2 | E5: cx | F5: d | G5: d/x | H5: Gesamtkosten | J5: =Tabellen!K10 -> 1413.780828
B6: Gesamtkosten | C6: 0.333333333 | D6: -10 | E6: 150 | F6: 500 | H6: variable Gesamtkosten | J6: =Kontrolle!J5-Kontrolle!E6 -> 1263.780828
B7: Preis-Absatz-Funktion | E7: -15 | F7: 400 | H7: fixe Gesamtkosten | J7: =Tabellen!D4 -> 150
B8: variable Gesamtkosten | C8: =C6 -> 0.333333333 | D8: =D6 -> -10 | E8: =E6 -> 150 | H8: Stückkosten | J8: =Tabellen!G12 -> 122.0615068
B9: Stückkosten | D9: =C6 -> 0.333333333 | E9: =D6 -> -10 | F9: =E6 -> 150 | G9: =F6 -> 500 | H9: variable Stückkosten | J9: =Tabellen!D7 -> -10
B10: variable Stückkosten | D10: =C6 -> 0.333333333 | E10: =E9 -> -10 | F10: =E6 -> 150 | H10: fixe Stückkosten | J10: =Tabellen!I12 -> 500
B11: Grenzkosten | D11: =3*C6 -> 0.999999999 | E11: =2*D6 -> -20 | F11: =E6 -> 150 | H11: Grenzkosten | J11: =Tabellen!D9 -> -20
B12: Erlös | D12: =E7 -> -15 | E12: =F7 -> 400 | H12: Absatzgrenze (Xmax) | J12: =(F7/E7)*-1 -> 26.66666667
B13: Grenzerlös | E13: =2*D12 -> -30 | F13: =E12 -> 400
B15: Geben Sie nach Klick auf "Eingabe" die Kostenfunktion und die Preis-Absatz-Funktion ein. Oder kopieren Sie Beispielfunktionen in die entsprechenden Felder
B21: Extrempunkte | C21: €
B22: Gewinnmaximum | C22: =Tabellen!I10 -> 1206.906052 | D22: größter Gesamtgewinn; größte Differenz zwischen Erlös und Kosten
B23: Courtnotscher Punkt | D23: Die Cournotsche Menge ergibt sich aus dem Schnittpunkt zwischen Grenzkosten und Grenzerlös für die den definierten gewinnmaximalen Bereich. Eingesetzt in die entsprechende Preis-Absatz-Funktion wird der gewinnmaximale Preis ermittelt.
B24: Preis | C24: =Tabellen!H10 -> 226.262079
B25: Menge | C25: =Tabellen!G10 -> 11.58252807
D27: Plausibilitätskontrolle | H27: Im betriebswirtschaftlichen Unterricht ist es eine Herausforderung, harmonisierende Kosten- und Preis-Absatz-Funktionen zu finden. Wenn diese Funktionen nicht harmonieren, erhalten Sie einen Hinweis. Gründe könnten z.B. negative variable Stück- oder Grenzkosten, oder nicht eindeutig definierte Cournotpunkte sein.
D28: =IF(OR(Tabellen!F116<=0,Kontrolle!F11>Kontrolle!F13,Tabellen!H116<=0),"keine Funktionsharmonie!","Funktionen harmonieren") -> Funktionen harmonieren
D29: =IF(Tabellen!F116<=0,"negative variable Stückkosten",IF(F11>F13,"Cournotpunkt nich eindeutig definiert'",IF(Tabellen!H116<=0,"negative Grenzkosten",""))) -> 
D30: Bei kubischen Kostenfunktionen der Form ax3-bx2+cx+d müssen Sie auf der Seite 'Tabellen' die Berechnung der Cournotmenge durch Klick auf den Button 'Cournotsche Menge' aktivieren, da sie analystisch berechnet wird. Andernfalls wird die Cournotmenge nicht korrekt angezeigt.

Sheet Tabellen
B1: aX3 | C1: bX2 | D1: cx | E1: d | F1: d/x | G1: Ausgabewerte | N1: Analytische Berechnungen bei unterschiededlichen Grundformen der Kostenfunktion
A2: K= | B2: =Kontrolle!C6 -> 0.333333333 | C2: =Kontrolle!D6 -> -10 | D2: =Kontrolle!E6 -> 150 | E2: =Kontrolle!F6 -> 500 | G2: Gewinnmaximum tabellarisch | J2: Gmax | K2: =MAX(I15:I115) -> 1206.68168
A3: Kv= | B3: =Kontrolle!C8 -> 0.333333333 | C3: =Kontrolle!D8 -> -10 | D3: =Kontrolle!E8 -> 150 | J3: XGmax | K3: =VLOOKUP(K2,I15:M115,5,FALSE) -> 11.46666667
A4: Kf= | D4: =D2 -> 150 | J4: PGmax | K4: =VLOOKUP(K2,I15:M115,4,FALSE) -> 228 | N4: Bei kubischer Kostenfunktion wirddie Cournotmenge nach Klick auf 'Cournotsche Menge' berechnet. Bei Linearen und quadratische Kostenfunktionen wir die Cournotmenge dirket berechnet. (Quadratische Kostenfunktionen sind allerdings unrealtistisch und dienen nur dazu, den Lehrenden 'das Leben' leicht zu machenJ)
A5: E1= | C5: =Kontrolle!D12 -> -15 | D5: =Kontrolle!E12 -> 400 | G5: Abweichungen der tabellarischen von der analystischen | K5: =100%-(K3/G10) -> 0.01000311854
A6: k= | C6: =Kontrolle!D9 -> 0.333333333 | D6: =Kontrolle!E9 -> -10 | E6: =D2 -> 150 | F6: =Kontrolle!G9 -> 500 | G6: Gewinnermittlung. (analytischer Gewinn = 100%)
A7: kv= | C7: =Kontrolle!D10 -> 0.333333333 | D7: =Kontrolle!E10 -> -10 | E7: =Kontrolle!F10 -> 150 | G7: Gewinnmaximum analytisch / Cournotscher Punkt
A8: kf= | F8: =E2 -> 500
A9: K' | C9: =Kontrolle!D11 -> 0.999999999 | D9: =Kontrolle!E11 -> -20 | E9: =Kontrolle!F11 -> 150 | G9: XGmax | H9: PGmax | I9: Gmax | J9: E | K9: K
A10: E' | D10: =Kontrolle!E13 -> -30 | E10: =Kontrolle!F13 -> 400 | G10: =IF(AND(C9=0,D9=0),O15,IF(AND(C9=0,D9>0),O19,O25)) -> 11.58252807 | H10: =(G10*D11)+E11 -> 226.262079 | I10: =J10-K10 -> 1206.906052 | J10: =G10*H10 -> 2620.686881 | K10: =(B2*(G10*G10*G10))+(C2*(G10*G10))+(D2*G10)+E2 -> 1413.780828
A11: PAF | D11: =Kontrolle!E7 -> -15 | E11: =Kontrolle!F7 -> 400 | G11: k | H11: kv | I11: kf | J11: E' | K11: K'
A12: Xmax | B12: =Kontrolle!J12 -> 26.66666667 | G12: =(C6*(G10*G10))+(D6*(G10))+(E6)+(F6/G10) -> 122.0615068 | H12: =(C7*(G10*G10))+(D7*G10)+E7 -> 78.89303809 | I12: =F8 -> 500 | J12: =(D10*G10)+E10 -> 52.52415796 | K12: =(C9*(G10*G10))+(D9*G10)+E9 -> 52.50439495
A14: X | B14: K | C14: Kv | D14: Kf | E14: k | F14: kv | G14: kf | H14: K' | I14: E-K | J14: E | K14: E' | L14: PAF1 | M14: X | N14: K = cx + d
A15: 0 | B15: =($B$2*(A15*A15*A15))+($C$2*(A15*A15))+($D$2*A15)+($E$2) -> 500 | C15: =($B$2*(A15*A15*A15))+($C$2*(A15*A15))+($D$2*A15) -> 0 | D15: =$E$2 -> 500 | I15: =J15-B15 -> -500 | J15: =($C$5*(A15*A15))+($D$5*A15) -> 0 | K15: =($D$10*A15)+$E$10 -> 400 | L15: =($D$11*A15)+$E$11 -> 400 | M15: 0 | O15: =IF(AND(C9=0,D9=0),(E10-E9)/(D10*-1),"") -> 
A16: =$B$12/100 -> 0.2666666667 | B16: =($B$2*(A16*A16*A16))+($C$2*(A16*A16))+($D$2*A16)+($E$2) -> 539.2952099 | C16: 39.29520988 | D16: =$E$2 -> 500 | E16: =B16/A16 -> 2022.357037 | F16: =C16/A16 -> 147.357037 | G16: =$F$6/A16 -> 1875 | H16: =($C$9*(A16*A16))+($D$9*(A16))+$E$9 -> 144.7377778 | I16: -433.6952099 | J16: =($C$5*(A16*A16))+($D$5*A16) -> 105.6 | K16: =($D$10*A16)+$E$10 -> 392 | L16: =($D$11*A16)+$E$11 -> 396 | M16: =B12/100 -> 0.2666666667
A17: =A16+$A$16 -> 0.5333333333 | B17: =($B$2*(A17*A17*A17))+($C$2*(A17*A17))+($D$2*A17)+($E$2) -> 577.2061235 | C17: 77.20612346 | D17: 500 | E17: 1082.261481 | F17: 144.7614815 | G17: 937.5 | H17: =($C$9*(A17*A17))+($D$9*(A17))+$E$9 -> 139.6177778 | I17: -368.1394568 | J17: 209.0666667 | K17: 384 | L17: 392 | M17: =M16+$M$16 -> 0.5333333333
A18: =A17+$A$16 -> 0.8 | B18: 613.7706667 | C18: 113.7706667 | D18: 500 | E18: 767.2133333 | F18: 142.2133333 | G18: 625 | H18: 134.64 | I18: -303.3706667 | J18: 310.4 | K18: 376 | L18: 388 | M18: 0.8 | N18: K = bx2 + cx + d
A19: =A18+$A$16 -> 1.066666667 | B19: 649.0267654 | C19: 149.0267654 | D19: 500 | E19: 608.4625926 | F19: 139.7125926 | G19: 468.75 | H19: 129.8044444 | I19: -239.4267654 | J19: 409.6 | K19: 368 | L19: 384 | M19: 1.066666667 | O19: =IF(D9>0,(E10-E9)/(D9+(D10*-1)),"") -> 
A20: 1.333333333 | B20: 683.0123457 | C20: 183.0123457 | D20: 500 | E20: 512.2592593 | F20: 137.2592593 | G20: 375 | H20: 125.1111111 | I20: -176.345679 | J20: 506.6666667 | K20: 360 | L20: 380 | M20: 1.333333333
A21: 1.6 | B21: 715.7653333 | C21: 215.7653333 | D21: 500 | E21: 447.3533333 | F21: 134.8533333 | G21: 312.5 | H21: 120.56 | I21: -114.1653333 | J21: 601.6 | K21: 352 | L21: 376 | M21: 1.6
A22: 1.866666667 | B22: 747.3236543 | C22: 247.3236543 | D22: 500 | E22: 400.3519577 | F22: 132.4948148 | G22: 267.8571429 | H22: 116.1511111 | I22: -52.92365432 | J22: 694.4 | K22: 344 | L22: 372 | M22: 1.866666667 | N22: K = ax3 - bx2 + cx + d
A23: 2.133333333 | B23: 777.7252346 | C23: 277.7252346 | D23: 500 | E23: 364.5587037 | F23: 130.1837037 | G23: 234.375 | H23: 111.8844444 | I23: 7.341432102 | J23: 785.0666667 | K23: 336 | L23: 368 | M23: 2.133333333
A24: 2.4 | B24: 807.008 | C24: 307.008 | D24: 500 | E24: 336.2533333 | F24: 127.92 | G24: 208.3333333 | H24: 107.76 | I24: 66.592 | J24: 873.6 | K24: 328 | L24: 364 | M24: 2.4
A25: 2.666666667 | B25: 835.2098765 | C25: 335.2098765 | D25: 500 | E25: 313.2037037 | F25: 125.7037037 | G25: 187.5 | H25: 103.7777778 | I25: 124.7901235 | J25: 960 | K25: 320 | L25: 360 | M25: 2.666666667 | O25: 11.58252807
A26: 2.933333333 | B26: 862.3687901 | C26: 362.3687901 | D26: 500 | E26: 293.9893603 | F26: 123.5348148 | G26: 170.4545455 | H26: 99.93777777 | I26: 181.8978766 | J26: 1044.266667 | K26: 312 | L26: 356 | M26: 2.933333333
A27: 3.2 | B27: 888.5226667 | C27: 388.5226667 | D27: 500 | E27: 277.6633333 | F27: 121.4133333 | G27: 156.25 | H27: 96.23999999 | I27: 237.8773333 | J27: 1126.4 | K27: 304 | L27: 352 | M27: 3.2 | O27: =((D10*O25)+(D9*-1*O25)+E10-E9)/C9 -> 134.1747195
A28: 3.466666667 | B28: 913.7094321 | C28: 413.7094321 | D28: 500 | E28: 263.5700285 | F28: 119.3392593 | G28: 144.2307692 | H28: 92.68444443 | I28: 292.6905679 | J28: 1206.4 | K28: 296 | L28: 348 | M28: 3.466666667 | O28: =SQRT(O27) -> 11.58338118
A29: 3.733333333 | B29: 937.9670123 | C29: 437.9670123 | D29: 500 | E29: 251.241164 | F29: 117.3125926 | G29: 133.9285714 | H29: 89.2711111 | I29: 346.2996543 | J29: 1284.266667 | K29: 288 | L29: 344 | M29: 3.733333333 | O29: =O28/O25 -> 1.000073655
A30: 4 | B30: 961.3333333 | C30: 461.3333333 | D30: 500 | E30: 240.3333333 | F30: 115.3333333 | G30: 125 | H30: 85.99999998 | I30: 398.6666667 | J30: 1360 | K30: 280 | L30: 340 | M30: 4
A31: 4.266666667 | B31: 983.846321 | C31: 483.846321 | D31: 500 | E31: 230.5889815 | F31: 113.4014815 | G31: 117.1875 | H31: 82.87111109 | I31: 449.753679 | J31: 1433.6 | K31: 272 | L31: 336 | M31: 4.266666667
A32: 4.533333333 | B32: 1005.543901 | C32: 505.5439012 | D32: 500 | E32: 221.8111547 | F32: 111.517037 | G32: 110.2941176 | H32: 79.88444442 | I32: 499.5227655 | J32: 1505.066667 | K32: 264 | L32: 332 | M32: 4.533333333
A33: 4.8 | B33: 1026.464 | C33: 526.464 | D33: 500 | E33: 213.8466667 | F33: 109.68 | G33: 104.1666667 | H33: 77.03999998 | I33: 547.936 | J33: 1574.4 | K33: 256 | L33: 328 | M33: 4.8
A34: 5.066666667 | B34: 1046.644543 | C34: 546.6445432 | D34: 500 | E34: 206.5745809 | F34: 107.8903704 | G34: 98.68421053 | H34: 74.33777775 | I34: 594.9554568 | J34: 1641.6 | K34: 248 | L34: 324 | M34: 5.066666667
A35: 5.333333333 | B35: 1066.123457 | C35: 566.1234567 | D35: 500 | E35: 199.8981481 | F35: 106.1481481 | G35: 93.75 | H35: 71.77777775 | I35: 640.5432099 | J35: 1706.666667 | K35: 240 | L35: 320 | M35: 5.333333333
A36: 5.6 | B36: 1084.938667 | C36: 584.9386666 | D36: 500 | E36: 193.7390476 | F36: 104.4533333 | G36: 89.28571429 | H36: 69.35999997 | I36: 684.6613334 | J36: 1769.6 | K36: 232 | L36: 316 | M36: 5.6
A37: 5.866666667 | B37: 1103.128099 | C37: 603.1280987 | D37: 500 | E37: 188.0331986 | F37: 102.8059259 | G37: 85.22727273 | H37: 67.08444441 | I37: 727.2719013 | J37: 1830.4 | K37: 224 | L37: 312 | M37: 5.866666667
A38: 6.133333333 | B38: 1120.729679 | C38: 620.7296789 | D38: 500 | E38: 182.727665 | F38: 101.2059259 | G38: 81.52173913 | H38: 64.95111107 | I38: 768.3369877 | J38: 1889.066667 | K38: 216 | L38: 308 | M38: 6.133333333
A39: 6.4 | B39: 1137.781333 | C39: 637.7813332 | D39: 500 | E39: 177.7783333 | F39: 99.65333332 | G39: 78.125 | H39: 62.95999996 | I39: 807.8186668 | J39: 1945.6 | K39: 208 | L39: 304 | M39: 6.4
A40: 6.666666667 | B40: 1154.320988 | C40: 654.3209876 | D40: 500 | E40: 173.1481481 | F40: 98.14814813 | G40: 75 | H40: 61.11111107 | I40: 845.6790124 | J40: 2000 | K40: 200 | L40: 300 | M40: 6.666666667
A41: 6.933333333 | B41: 1170.386568 | C41: 670.3865678 | D41: 500 | E41: 168.805755 | F41: 96.69037035 | G41: 72.11538462 | H41: 59.4044444 | I41: 881.8800989 | J41: 2052.266667 | K41: 192 | L41: 296 | M41: 6.933333333
A42: 7.2 | B42: 1186.016 | C42: 686.0159999 | D42: 500 | E42: 164.7244444 | F42: 95.27999998 | G42: 69.44444444 | H42: 57.83999995 | I42: 916.3840001 | J42: 2102.4 | K42: 184 | L42: 292 | M42: 7.2
A43: 7.466666667 | B43: 1201.24721 | C43: 701.2472097 | D43: 500 | E43: 160.8813227 | F43: 93.91703702 | G43: 66.96428571 | H43: 56.41777772 | I43: 949.1527903 | J43: 2150.4 | K43: 176 | L43: 288 | M43: 7.466666667
A44: 7.733333333 | B44: 1216.118123 | C44: 716.1181233 | D44: 500 | E44: 157.2566539 | F44: 92.60148146 | G44: 64.65517241 | H44: 55.13777772 | I44: 980.1485434 | J44: 2196.266667 | K44: 168 | L44: 284 | M44: 7.733333333
A45: 8 | B45: 1230.666666 | C45: 730.6666665 | D45: 500 | E45: 153.8333333 | F45: 91.33333331 | G45: 62.5 | H45: 53.99999994 | I45: 1009.333334 | J45: 2240 | K45: 160 | L45: 280 | M45: 8
A46: 8.266666667 | B46: 1244.930765 | C46: 744.9307652 | D46: 500 | E46: 150.5964635 | F46: 90.11259257 | G46: 60.48387097 | H46: 53.00444438 | I46: 1036.669235 | J46: 2281.6 | K46: 152 | L46: 276 | M46: 8.266666667
A47: 8.533333333 | B47: 1258.948345 | C47: =($B$2*(A47*A47*A47))+($C$2*(A47*A47))+($D$2*A47) -> 758.9483455 | D47: 500 | E47: 147.5330092 | F47: 88.93925923 | G47: 58.59375 | H47: 52.15111104 | I47: =J47-B47 -> 1062.118321 | J47: 2321.066667 | K47: 144 | L47: 272 | M47: 8.533333333
A48: 8.8 | B48: 1272.757333 | C48: 772.7573331 | D48: 500 | E48: =B48/A48 -> 144.6315151 | F48: =C48/A48 -> 87.81333331 | G48: 56.81818182 | H48: 51.43999992 | I48: 1085.642667 | J48: 2358.4 | K48: 136 | L48: 268 | M48: 8.8
A49: 9.066666667 | B49: 1286.395654 | C49: 786.3956541 | D49: 500 | E49: 141.8818736 | F49: 86.73481479 | G49: 55.14705882 | H49: 50.87111103 | I49: 1107.204346 | J49: 2393.6 | K49: 128 | L49: 264 | M49: =M48+$M$16 -> 9.066666667
A50: 9.333333333 | B50: 1299.901234 | C50: 799.9012343 | D50: 500 | E50: 139.2751322 | F50: 85.70370367 | G50: 53.57142857 | H50: 50.44444436 | I50: 1126.765432 | J50: 2426.666667 | K50: 120 | L50: 260 | M50: 9.333333333
A51: 9.6 | B51: 1313.312 | C51: 813.3119997 | D51: 500 | E51: 136.8033333 | F51: 84.71999997 | G51: 52.08333333 | H51: 50.15999991 | I51: 1144.288 | J51: 2457.6 | K51: 112 | L51: 256 | M51: 9.6
A52: 9.866666667 | B52: 1326.665876 | C52: 826.6658762 | D52: 500 | E52: 134.4593793 | F52: 83.78370367 | G52: 50.67567568 | H52: 50.01777768 | I52: 1159.734124 | J52: 2486.4 | K52: 104 | L52: 252 | M52: 9.866666667
A53: 10.13333333 | B53: 1340.00079 | C53: 840.0007898 | D53: 500 | E53: 132.23692 | F53: 82.89481478 | G53: 49.34210526 | H53: 50.01777768 | I53: 1173.065877 | J53: 2513.066667 | K53: 96 | L53: 248 | M53: 10.13333333
A54: 10.4 | B54: 1353.354666 | C54: 853.3546663 | D54: 500 | E54: 130.1302564 | F54: 82.0533333 | G54: 48.07692308 | H54: 50.15999989 | I54: 1184.245334 | J54: 2537.6 | K54: 88 | L54: 244 | M54: 10.4
A55: 10.66666667 | B55: 1366.765432 | C55: 866.7654317 | D55: 500 | E55: 128.1342592 | F55: 81.25925922 | G55: 46.875 | H55: 50.44444433 | I55: 1193.234568 | J55: 2560 | K55: 80 | L55: 240 | M55: 10.66666667
A56: 10.93333333 | B56: 1380.271012 | C56: 880.2710119 | D56: 500 | E56: 126.2442999 | F56: 80.51259255 | G56: 45.73170732 | H56: 50.87111099 | I56: 1199.995655 | J56: 2580.266667 | K56: 72 | L56: 236 | M56: 10.93333333
A57: 11.2 | B57: 1393.909333 | C57: 893.9093329 | D57: 500 | E57: 124.4561904 | F57: 79.81333329 | G57: 44.64285714 | H57: 51.43999987 | I57: 1204.490667 | J57: 2598.4 | K57: 64 | L57: 232 | M57: 11.2
A58: 11.46666667 | B58: 1407.71832 | C58: 907.7183205 | D58: 500 | E58: 122.7661326 | F58: 79.16148144 | G58: 43.60465116 | H58: 52.15111098 | I58: 1206.68168 | J58: 2614.4 | K58: 56 | L58: 228 | M58: 11.46666667
A59: 11.73333333 | B59: 1421.735901 | C59: 921.7359007 | D59: 500 | E59: 121.1706734 | F59: 78.55703699 | G59: 42.61363636 | H59: 53.00444431 | I59: 1206.530766 | J59: 2628.266667 | K59: 48 | L59: 224 | M59: 11.73333333
A60: 12 | B60: 1435.999999 | C60: 935.9999994 | D60: 500 | E60: 119.6666666 | F60: 77.99999995 | G60: 41.66666667 | H60: 53.99999986 | I60: 1204.000001 | J60: 2640 | K60: 40 | L60: 220 | M60: 12
A61: 12.26666667 | B61: 1450.548543 | C61: 950.5485426 | D61: 500 | E61: 118.2512399 | F61: 77.49037032 | G61: 40.76086957 | H61: 55.13777763 | I61: 1199.051457 | J61: 2649.6 | K61: 32 | L61: 216 | M61: 12.26666667
A62: 12.53333333 | B62: 1465.419456 | C62: 965.4194561 | D62: 500 | E62: 116.9217651 | F62: 77.0281481 | G62: 39.89361702 | H62: 56.41777762 | I62: 1191.647211 | J62: 2657.066667 | K62: 24 | L62: 212 | M62: 12.53333333
A63: 12.8 | B63: 1480.650666 | C63: 980.650666 | D63: 500 | E63: 115.6758333 | F63: 76.61333328 | G63: 39.0625 | H63: 57.83999984 | I63: 1181.749334 | J63: 2662.4 | K63: 16 | L63: 208 | M63: 12.8
A64: 13.06666667 | B64: 1496.280098 | C64: 996.280098 | D64: 500 | E64: 114.511232 | F64: 76.24592587 | G64: 38.26530612 | H64: 59.40444427 | I64: 1169.319902 | J64: 2665.6 | K64: 8 | L64: 204 | M64: 13.06666667
A65: 13.33333333 | B65: 1512.345678 | C65: 1012.345678 | D65: 500 | E65: 113.4259259 | F65: 75.92592587 | G65: 37.5 | H65: 61.11111093 | I65: 1154.320988 | J65: 2666.666667 | K65: -4.547473509e-13 | L65: 200 | M65: 13.33333333
A66: 13.6 | B66: 1528.885332 | C66: 1028.885332 | D66: 500 | E66: 112.4180392 | F66: 75.65333327 | G66: 36.76470588 | H66: 62.95999982 | I66: 1136.714668 | J66: 2665.6 | K66: -8 | L66: 196 | M66: 13.6
A67: 13.86666667 | B67: 1545.936987 | C67: 1045.936987 | D67: 500 | E67: 111.4858404 | F67: 75.42814808 | G67: 36.05769231 | H67: 64.95111092 | I67: 1116.463013 | J67: 2662.4 | K67: -16 | L67: 192 | M67: 13.86666667
A68: 14.13333333 | B68: 1563.538567 | C68: 1063.538567 | D68: 500 | E68: 110.6277288 | F68: 75.2503703 | G68: 35.37735849 | H68: 67.08444424 | I68: 1093.5281 | J68: 2657.066667 | K68: -24 | L68: 188 | M68: 14.13333333
A69: 14.4 | B69: 1581.727999 | C69: 1081.727999 | D69: 500 | E69: 109.8422222 | F69: 75.11999993 | G69: 34.72222222 | H69: 69.35999979 | I69: 1067.872001 | J69: 2649.6 | K69: -32 | L69: 184 | M69: 14.4
A70: 14.66666667 | B70: 1600.543209 | C70: 1100.543209 | D70: 500 | E70: 109.1279461 | F70: 75.03703697 | G70: 34.09090909 | H70: 71.77777756 | I70: 1039.456791 | J70: 2640 | K70: -40 | L70: 180 | M70: 14.66666667
A71: 14.93333333 | B71: 1620.022122 | C71: 1120.022122 | D71: 500 | E71: 108.4836243 | F71: 75.00148141 | G71: 33.48214286 | H71: 74.33777755 | I71: 1008.244544 | J71: 2628.266667 | K71: -48 | L71: 176 | M71: 14.93333333
A72: 15.2 | B72: 1640.202665 | C72: 1140.202665 | D72: 500 | E72: 107.9080701 | F72: 75.01333326 | G72: 32.89473684 | H72: 77.03999977 | I72: 974.1973345 | J72: 2614.4 | K72: -56 | L72: 172 | M72: 15.2
A73: 15.46666667 | B73: 1661.122764 | C73: 1161.122764 | D73: 500 | E73: 107.4001787 | F73: 75.07259251 | G73: 32.32758621 | H73: 79.88444421 | I73: 937.2772358 | J73: 2598.4 | K73: -64 | L73: 168 | M73: 15.46666667
A74: 15.73333333 | B74: 1682.820344 | C74: 1182.820344 | D74: 500 | E74: 106.9589202 | F74: 75.17925918 | G74: 31.77966102 | H74: 82.87111086 | I74: 897.4463223 | J74: 2580.266667 | K74: -72 | L74: 164 | M74: 15.73333333
A75: 16 | B75: 1705.333332 | C75: 1205.333332 | D75: 500 | E75: 106.5833332 | F75: 75.33333325 | G75: 31.25 | H75: 85.99999974 | I75: 854.666668 | J75: 2560 | K75: -80 | L75: 160 | M75: 16
A76: 16.26666667 | B76: 1728.699653 | C76: 1228.699653 | D76: 500 | E76: 106.2725196 | F76: 75.53481473 | G76: 30.73770492 | H76: 89.27111085 | I76: 808.9003471 | J76: 2537.6 | K76: -88 | L76: 156 | M76: 16.26666667
A77: 16.53333333 | B77: 1752.957233 | C77: 1252.957233 | D77: 500 | E77: 106.0256391 | F77: 75.78370361 | G77: 30.24193548 | H77: 92.68444417 | I77: 760.1094336 | J77: 2513.066667 | K77: -96 | L77: 152 | M77: 16.53333333
A78: 16.8 | B78: 1778.143998 | C78: 1278.143998 | D78: 500 | E78: 105.8419047 | F78: 76.07999991 | G78: 29.76190476 | H78: 96.23999972 | I78: 708.2560016 | J78: 2486.4 | K78: -104 | L78: 148 | M78: 16.8
A79: 17.06666667 | B79: 1804.297875 | C79: =($B$2*(A79*A79*A79))+($C$2*(A79*A79))+($D$2*A79) -> 1304.297875 | D79: 500 | E79: 105.7205786 | F79: 76.42370361 | G79: 29.296875 | H79: 99.93777749 | I79: =J79-B79 -> 653.3021251 | J79: 2457.6 | K79: -112 | L79: 144 | M79: 17.06666667
A80: 17.33333333 | B80: 1831.456788 | C80: 1331.456788 | D80: =$E$2 -> 500 | E80: =B80/A80 -> 105.6609686 | F80: =C80/A80 -> 76.81481471 | G80: =$F$6/A80 -> 28.84615385 | H80: 103.7777775 | I80: 595.2098783 | J80: =($C$5*(A80*A80))+($D$5*A80) -> 2426.666667 | K80: =($D$10*A80)+$E$10 -> -120 | L80: =($D$11*A80)+$E$11 -> 140 | M80: 17.33333333
A81: 17.6 | B81: =($B$2*(A81*A81*A81))+($C$2*(A81*A81))+($D$2*A81)+($E$2) -> 1859.658665 | C81: 1359.658665 | D81: 500 | E81: 105.6624241 | F81: 77.25333323 | G81: 28.40909091 | H81: =($C$9*(A81*A81))+($D$9*(A81))+$E$9 -> 107.7599997 | I81: 533.9413352 | J81: 2393.6 | K81: -128 | L81: 136 | M81: =M80+$M$16 -> 17.6
A82: 17.86666667 | B82: 1888.94143 | C82: 1388.94143 | D82: 500 | E82: 105.7243338 | F82: 77.73925915 | G82: 27.98507463 | H82: 111.8844441 | I82: 469.4585698 | J82: 2358.4 | K82: -136 | L82: 132 | M82: 17.86666667
A83: =A82+$A$16 -> 18.13333333 | B83: 1919.34301 | C83: 1419.34301 | D83: 500 | E83: 105.8461219 | F83: 78.27259248 | G83: 27.57352941 | H83: 116.1511108 | I83: 401.7236563 | J83: 2321.066667 | K83: -144 | L83: 128 | M83: 18.13333333
A84: 18.4 | B84: 1950.901331 | C84: 1450.901331 | D84: 500 | E84: 106.0272463 | F84: 78.85333322 | G84: 27.17391304 | H84: 120.5599997 | I84: 330.6986687 | J84: 2281.6 | K84: -152 | L84: 124 | M84: 18.4
A85: 18.66666667 | B85: 1983.654319 | C85: 1483.654319 | D85: 500 | E85: 106.2671957 | F85: 79.48148137 | G85: 26.78571429 | H85: 125.1111108 | I85: 256.3456812 | J85: 2240 | K85: -160 | L85: 120 | M85: 18.66666667
A86: 18.93333333 | B86: 2017.639899 | C86: 1517.639899 | D86: 500 | E86: 106.5654876 | F86: 80.15703692 | G86: 26.4084507 | H86: 129.8044441 | I86: 178.6267677 | J86: 2196.266667 | K86: -168 | L86: 116 | M86: 18.93333333
A87: 19.2 | B87: 2052.895998 | C87: 1552.895998 | D87: 500 | E87: 106.9216665 | F87: 80.87999988 | G87: 26.04166667 | H87: 134.6399996 | I87: 97.50400236 | J87: 2150.4 | K87: -176 | L87: 112 | M87: 19.2
A88: 19.46666667 | B88: 2089.460541 | C88: 1589.460541 | D88: 500 | E88: 107.3353018 | F88: 81.65037024 | G88: 25.68493151 | H88: 139.6177774 | I88: 12.93945925 | J88: 2102.4 | K88: -184 | L88: 108 | M88: 19.46666667
A89: 19.73333333 | B89: 2127.371454 | C89: 1627.371454 | D89: 500 | E89: 107.8059859 | F89: 82.46814802 | G89: 25.33783784 | H89: 144.7377774 | I89: -75.10478756 | J89: 2052.266667 | K89: -192 | L89: 104 | M89: 19.73333333
A90: 20 | B90: 2166.666664 | C90: 1666.666664 | D90: 500 | E90: 108.3333332 | F90: 83.3333332 | G90: 25 | H90: 149.9999996 | I90: -166.666664 | J90: 2000 | K90: -200 | L90: 100 | M90: 20
A91: 20.26666667 | B91: 2207.384096 | C91: 1707.384096 | D91: 500 | E91: 108.9169784 | F91: 84.24592579 | G91: 24.67105263 | H91: 155.404444 | I91: -261.784096 | J91: 1945.6 | K91: -208 | L91: 96 | M91: 20.26666667
A92: 20.53333333 | B92: 2249.561676 | C92: 1749.561676 | D92: 500 | E92: 109.5565751 | F92: 85.20592579 | G92: 24.35064935 | H92: 160.9511107 | I92: -360.4950095 | J92: 1889.066667 | K92: -216 | L92: 92 | M92: 20.53333333
A93: 20.8 | B93: 2293.23733 | C93: 1793.23733 | D93: 500 | E93: 110.2517947 | F93: 86.21333319 | G93: 24.03846154 | H93: 166.6399996 | I93: -462.8373303 | J93: 1830.4 | K93: -224 | L93: 88 | M93: 20.8
A94: 21.06666667 | B94: 2338.448985 | C94: 1838.448985 | D94: 500 | E94: 111.0023252 | F94: 87.268148 | G94: 23.73417722 | H94: 172.4711107 | I94: -568.8489845 | J94: 1769.6 | K94: -232 | L94: 84 | M94: 21.06666667
A95: 21.33333333 | B95: 2385.234565 | C95: 1885.234565 | D95: 500 | E95: 111.8078702 | F95: 88.37037022 | G95: 23.4375 | H95: 178.444444 | I95: -678.567898 | J95: 1706.666667 | K95: -240 | L95: 80 | M95: 21.33333333
A96: 21.6 | B96: 2433.631997 | C96: 1933.631997 | D96: 500 | E96: 112.668148 | F96: 89.51999984 | G96: 23.14814815 | H96: 184.5599995 | I96: -792.0319966 | J96: 1641.6 | K96: -248 | L96: 76 | M96: 21.6
A97: 21.86666667 | B97: 2483.679206 | C97: 1983.679206 | D97: 500 | E97: 113.5828905 | F97: 90.71703688 | G97: 22.86585366 | H97: 190.8177773 | I97: -909.2792064 | J97: 1574.4 | K97: -256 | L97: 72 | M97: 21.86666667
A98: 22.13333333 | B98: 2535.41412 | C98: 2035.41412 | D98: 500 | E98: 114.5518428 | F98: 91.96148132 | G98: 22.59036145 | H98: 197.2177773 | I98: -1030.347453 | J98: 1505.066667 | K98: -264 | L98: 68 | M98: 22.13333333
A99: 22.4 | B99: 2588.874663 | C99: 2088.874663 | D99: 500 | E99: 115.5747617 | F99: 93.25333317 | G99: 22.32142857 | H99: 203.7599995 | I99: -1155.274663 | J99: 1433.6 | K99: -272 | L99: 64 | M99: 22.4
A100: 22.66666667 | B100: 2644.098762 | C100: 2144.098762 | D100: 500 | E100: 116.651416 | F100: 94.59259242 | G100: 22.05882353 | H100: 210.4444439 | I100: -1284.098762 | J100: 1360 | K100: -280 | L100: 60 | M100: 22.66666667
A101: 22.93333333 | B101: 2701.124342 | C101: 2201.124342 | D101: 500 | E101: 117.7815847 | F101: 95.97925908 | G101: 21.80232558 | H101: 217.2711106 | I101: -1416.857675 | J101: 1284.266667 | K101: -288 | L101: 56 | M101: 22.93333333
A102: 23.2 | B102: 2759.989329 | C102: 2259.989329 | D102: 500 | E102: 118.9650573 | F102: 97.41333315 | G102: 21.55172414 | H102: 224.2399995 | I102: -1553.589329 | J102: 1206.4 | K102: -296 | L102: 52 | M102: 23.2
A103: 23.46666667 | B103: 2820.73165 | C103: 2320.73165 | D103: 500 | E103: 120.2016328 | F103: 98.89481463 | G103: 21.30681818 | H103: 231.3511106 | I103: -1694.33165 | J103: 1126.4 | K103: -304 | L103: 48 | M103: 23.46666667
A104: 23.73333333 | B104: 2883.38923 | C104: 2383.38923 | D104: 500 | E104: 121.4911192 | F104: 100.4237035 | G104: 21.06741573 | H104: 238.6044439 | I104: -1839.122563 | J104: 1044.266667 | K104: -312 | L104: 44 | M104: 23.73333333
A105: 24 | B105: 2947.999995 | C105: 2447.999995 | D105: 500 | E105: 122.8333331 | F105: 101.9999998 | G105: 20.83333333 | H105: 245.9999994 | I105: -1987.999995 | J105: 960 | K105: -320 | L105: 40 | M105: 24
A106: 24.26666667 | B106: 3014.601872 | C106: 2514.601872 | D106: 500 | E106: 124.2280991 | F106: 103.6237035 | G106: 20.6043956 | H106: 253.5377772 | I106: -2141.001872 | J106: 873.6 | K106: -328 | L106: 36 | M106: 24.26666667
A107: 24.53333333 | B107: 3083.232785 | C107: 2583.232785 | D107: 500 | E107: 125.6752494 | F107: 105.2948146 | G107: 20.38043478 | H107: 261.2177772 | I107: -2298.166119 | J107: 785.0666667 | K107: -336 | L107: 32 | M107: 24.53333333
A108: 24.8 | B108: 3153.930662 | C108: 2653.930662 | D108: 500 | E108: 127.1746235 | F108: 107.0133331 | G108: 20.16129032 | H108: 269.0399994 | I108: -2459.530662 | J108: 694.4 | K108: -344 | L108: 28 | M108: 24.8
A109: 25.06666667 | B109: 3226.733427 | C109: 2726.733427 | D109: 500 | E109: 128.7260676 | F109: 108.779259 | G109: 19.94680851 | H109: 277.0044438 | I109: -2625.133427 | J109: 601.6 | K109: -352 | L109: 24 | M109: 25.06666667
A110: 25.33333333 | B110: 3301.679007 | C110: 2801.679007 | D110: 500 | E110: 130.3294345 | F110: 110.5925924 | G110: 19.73684211 | H110: 285.1111105 | I110: -2795.01234 | J110: 506.6666667 | K110: -360 | L110: 20 | M110: 25.33333333
A111: 25.6 | B111: 3378.805328 | C111: 2878.805328 | D111: 500 | E111: 131.9845831 | F111: 112.4533331 | G111: 19.53125 | H111: 293.3599993 | I111: =J111-B111 -> -2969.205328 | J111: 409.6 | K111: -368 | L111: 16 | M111: 25.6
A112: 25.86666667 | B112: 3458.150315 | C112: 2958.150315 | D112: 500 | E112: 133.6913782 | F112: 114.3614813 | G112: 19.32989691 | H112: 301.7511104 | I112: -3147.750315 | J112: 310.4 | K112: -376 | L112: 12 | M112: 25.86666667
A113: 26.13333333 | B113: 3539.751895 | C113: 3039.751895 | D113: 500 | E113: 135.4496899 | F113: 116.3170368 | G113: 19.13265306 | H113: 310.2844438 | I113: -3330.685229 | J113: 209.0666667 | K113: -384 | L113: 8 | M113: 26.13333333
A114: 26.4 | B114: 3623.647994 | C114: 3123.647994 | D114: 500 | E114: 137.2593937 | F114: 118.3199998 | G114: 18.93939394 | H114: 318.9599993 | I114: -3518.047994 | J114: 105.6 | K114: -392 | L114: 4 | M114: 26.4
A115: 26.66666667 | B115: 3709.876537 | C115: 3209.876537 | D115: 500 | E115: 139.1203701 | F115: 120.3703701 | G115: 18.75 | H115: 327.7777771 | I115: -3709.876537 | J115: 0 | K115: -400 | L115: 0 | M115: 26.66666667
F116: =MIN(F16:F115) -> 75.00148141 | H116: =MIN(H16:H115) -> 50.01777768 | J116: =MAX(I15:I115) -> 1206.68168 | K116: =MAX(J15:J115) -> 2666.666667

Sheet Gesamtanalyse
H7: =Tabellen!G10 -> 11.58252807 | I7: 0
H8: =H7 -> 11.58252807 | I8: =Tabellen!#REF! -> 

Sheet Stückbetrachtung
H5: =Tabellen!G10 -> 11.58252807 | I5: 0 | J5: 0 | K5: =I6 -> 226.262079
H6: =H5 -> 11.58252807 | I6: =Tabellen!H10 -> 226.262079 | J6: =H5 -> 11.58252807 | K6: =I6 -> 226.262079

Sheet Gewinn und Verlust
H5: =Tabellen!G10 -> 11.58252807 | I5: 0
H6: =H5 -> 11.58252807 | I6: =Tabellen!J116 -> 1206.68168

Sheet Funktionen
B6: Aufgabe 1 | F6: Aufgabe 2 | J6: Aufgabe 3 | N6: 1/25 | O6: =1/P6 -> 0.04 | P6: 25
A7: Funktion | B7: aX3 | C7: bX2 | D7: cX | E7: d | F7: aX3 | G7: bX2 | H7: cX | I7: d | J7: aX3 | K7: bX2 | L7: cX | M7: d | N7: 1/75 | O7: =1/P7 -> 0.01333333333 | P7: 75
A8: K | D8: 300 | E8: 10000 | H8: 4 | I8: 5100 | L8: 4 | M8: 5100 | N8: 1/125 | O8: 0.008 | P8: 125
A9: PAF | D9: -15 | E9: 1200 | H9: 0.00125 | I9: 15 | L9: -0.01 | M9: 22 | N9: 1/40 | O9: 0.025 | P9: 40
N10: 1/60 | O10: 0.01666666667 | P10: 60
B11: Aufgabe 4 | F11: Aufgabe 5 | J11: Aufgabe 6 | N11: 1/80 | O11: 0.0125 | P11: 80
A12: Funktion | B12: aX3 | C12: bX2 | D12: cX | E12: d | F12: aX3 | G12: bX2 | H12: cX | I12: d | J12: aX3 | K12: bX2 | L12: cX | M12: d | N12: 1/90 | O12: 0.01111111111 | P12: 90
A13: K | D13: 4 | E13: 5100 | H13: 2 | I13: 2450 | L13: 14 | M13: 5000 | N13: 1/20 | O13: 0.05 | P13: 20
A14: PAF | D14: -0.002 | E14: 12 | H14: -0.45 | I14: 92 | L14: -0.2 | M14: 100 | N14: 1/30 | O14: 0.03333333333 | P14: 30
N15: 1/300 | O15: 0.003333333333 | P15: 300
B16: Aufgabe 7 | F16: Aufgabe 8 | J16: Aufgabe 9 | N16: 1/125 | O16: 0.004444444444 | P16: 225
A17: Funktion | B17: aX3 | C17: bX2 | D17: cX | E17: d | F17: aX3 | G17: bX2 | H17: cX | I17: d | J17: aX3 | K17: bX2 | L17: cX | M17: d | N17: 1/45 | O17: 0.02222222222 | P17: 45
A18: K | D18: 14 | E18: 5000 | H18: 4 | I18: 2950 | L18: 6.8 | M18: 580 | N18: 1/150 | O18: 0.006666666667 | P18: 150
A19: PAF | D19: -0.5 | E19: 120 | H19: -0.355 | I19: 85 | L19: -1.15 | M19: 85 | N19: 1/250 | O19: 0.004 | P19: 250
N20: 1/15 | O20: 0.06666666667 | P20: 15
B21: Aufgabe 10 | F21: Aufgabe 11 | J21: Aufgabe 12 | N21: 1/8 | O21: 0.125 | P21: 8
A22: Funktion | B22: aX3 | C22: bX2 | D22: cX | E22: d | F22: aX3 | G22: bX2 | H22: cX | I22: d | J22: aX3 | K22: bX2 | L22: cX | M22: d | N22: 1/16 | O22: 0.0625 | P22: 16
A23: K | D23: 9 | E23: 3250 | H23: 9 | I23: 3250 | L23: 9 | M23: 3250 | N23: 1/32 | O23: 0.03125 | P23: 32
A24: PAF | D24: -0.1985 | E24: 100 | H24: -0.5015 | I24: 120 | L24: -0.1055 | M24: 60 | N24: 1/64 | O24: 0.015625 | P24: 64
N25: 1/500 | O25: 0.002 | P25: 500
B26: Aufgabe 13 | F26: Aufgabe 14 | J26: Aufgabe 15
A27: Funktion | B27: aX3 | C27: bX2 | D27: cX | E27: d | F27: aX3 | G27: bX2 | H27: cX | I27: d | J27: aX3 | K27: bX2 | L27: cX | M27: d
A28: K | D28: 5.8 | E28: 1900 | H28: 5.8 | I28: 1900 | L28: 5.8 | M28: 1900
A29: PAF | D29: -0.45 | E29: 92 | H29: -1.25 | I29: 125 | L29: -0.3 | M29: 55
B31: Aufgabe 16 | F31: Aufgabe 17 | J31: Aufgabe 18
A32: Funktion | B32: aX3 | C32: bX2 | D32: cX | E32: d | F32: aX3 | G32: bX2 | H32: cX | I32: d | J32: aX3 | K32: bX2 | L32: cX | M32: d
A33: K | D33: 89 | E33: 29950 | H33: 89 | I33: 29950 | L33: 89 | M33: 29950
A34: PAF | D34: -2.2 | E34: 920 | H34: -4.4 | I34: 1100 | L34: -3.1 | M34: 925
B36: Aufgabe 19 | F36: Aufgabe 20 | J36: Aufgabe 21
A37: Funktion | B37: aX3 | C37: bX2 | D37: cX | E37: d | F37: aX3 | G37: bX2 | H37: cX | I37: d | J37: aX3 | K37: bX2 | L37: cX | M37: d
A38: K | D38: 12 | E38: 5100 | H38: 12 | I38: 5100 | L38: 12 | M38: 5100
A39: PAF | D39: -25 | E39: 150 | H39: -0.5 | I39: 190 | L39: -0.25 | M39: 120
B41: Aufgabe 22 | F41: Aufgabe 23 | J41: Aufgabe 24
A42: Funktion | B42: aX3 | C42: bX2 | D42: cX | E42: d | F42: aX3 | G42: bX2 | H42: cX | I42: d | J42: aX3 | K42: bX2 | L42: cX | M42: d
A43: K | D43: 40 | E43: 2950 | H43: 40 | I43: 75500 | L43: 20 | M43: 20000
A44: PAF | D44: -0.125 | E44: 92 | H44: -0.125 | I44: 300 | L44: -0.00333 | M44: 40
B46: Aufgabe 25 | F46: Aufgabe 26 | J46: Aufgabe 27
A47: Funktion | B47: aX3 | C47: bX2 | D47: cX | E47: d | F47: aX3 | G47: bX2 | H47: cX | I47: d | J47: aX3 | K47: bX2 | L47: cX | M47: d
A48: K | B48: 0.1 | C48: -2 | D48: 15 | E48: 10 | F48: 1.5 | G48: -12 | H48: 60 | I48: 50 | J48: 0.333333333 | K48: -10 | L48: 150 | M48: 500
A49: PAF | D49: -0.8 | E49: 16 | H49: -25 | I49: 150 | L49: -15 | M49: 400
B51: Aufgabe 28 | F51: Aufgabe 29 | J51: Aufgabe 30
A52: Funktion | B52: aX3 | C52: bX2 | D52: cX | E52: d | F52: aX3 | G52: bX2 | H52: cX | I52: d | J52: aX3 | K52: bX2 | L52: cX | M52: d
A53: K | B53: 0.5 | C53: -5 | D53: 20 | E53: 50 | F53: 5 | G53: -50 | H53: 250 | I53: 200 | J53: 0.038 | K53: -8.04 | L53: 824.45 | M53: 6000
A54: PAF | D54: -10 | E54: 100 | H54: -100 | I54: 800 | L54: -6 | M54: 1200
B56: Aufgabe 31 | F56: Aufgabe 32 | J56: Aufgabe 33
A57: Funktion | B57: aX3 | C57: bX2 | D57: cX | E57: d | F57: aX3 | G57: bX2 | H57: cX | I57: d | J57: aX3 | K57: bX2 | L57: cX | M57: d
A58: K | B58: 0.083 | C58: -8.4 | D58: 790 | E58: 5900 | F58: 0.25 | G58: -1.5 | H58: 20 | I58: 100 | J58: 4 | K58: -50 | L58: 240 | M58: 680
A59: PAF | D59: -16 | E59: 1500 | H59: -10 | I59: 120 | L59: -90 | M59: 900
B61: Aufgabe 34 | F61: Aufgabe 35 | J61: Aufgabe 36
A62: Funktion | B62: aX3 | C62: bX2 | D62: cX | E62: d | F62: aX3 | G62: bX2 | H62: cX | I62: d | J62: aX3 | K62: bX2 | L62: cX | M62: d
A63: K | B63: 3 | C63: -5 | D63: 50 | E63: 500 | F63: 0.55 | G63: -4.5 | H63: 25 | I63: 60 | J63: 0.001 | K63: -0.5 | L63: 90 | M63: 720
A64: PAF | D64: -90 | E64: 600 | H64: -9 | I64: 90 | L64: -0.18 | M64: 90
B66: Aufgabe 37 | F66: Aufgabe 38 | J66: Aufgabe 39
A67: Funktion | B67: aX3 | C67: bX2 | D67: cX | E67: d | F67: aX3 | G67: bX2 | H67: cX | I67: d | J67: aX3 | K67: bX2 | L67: cX | M67: d
A68: K | D68: 0.5 | E68: 3 | F68: 0.1 | G68: -5.3 | H68: 120 | I68: 20 | J68: 0.01 | K68: -1.3 | L68: 70 | M68: 200
A69: PAF | H69: -3 | I69: 120 | L69: -0.6 | M69: 80
B71: Aufgabe 40 | F71: Aufgabe 41 | J71: Aufgabe 42
A72: Funktion | B72: aX3 | C72: bX2 | D72: cX | E72: d | F72: aX3 | G72: bX2 | H72: cX | I72: d | J72: aX3 | K72: bX2 | L72: cX | M72: d
A73: K | D73: 20 | E73: 10000 | F73: 0.0033 | G73: -0.25 | H73: 10 | I73: 1016 | K73: 0.5 | L73: 2 | M73: 50
A74: PAF | H74: -0.5 | I74: 60 | L74: -3 | M74: 30
B76: Aufgabe 43 | F76: Aufgabe 44 | J76: Aufgabe 45
A77: Funktion | B77: aX3 | C77: bX2 | D77: cX | E77: d | F77: aX3 | G77: bX2 | H77: cX | I77: d | J77: aX3 | K77: bX2 | L77: cX | M77: d
A78: K | C78: 0.666667 | D78: 10 | E78: 15
A79: PAF | D79: -0.66667 | E79: 30
